[Event "12th National Amateur Chess-ch 2025"]
[Site "Bihar"]
[Date "2025.03.25"]
[Round "1.9"]
[White "Advik Kumar"]
[Black "Prem Kumar"]
[Result "0-1"]
[Annotator "NA RC"]
[ECO "B09"]
[WhiteElo "1459"]
[BlackElo "1697"]
[PlyCount "110"]
[EventDate "2025.03.25"]
[EventCountry "IND"]
[SourceTitle "playchess.com"]
[Source "ChessBase"]
[SourceQuality "1"]
[TimeControl "5400+30"]

1. e4 {[%emt 0:00:30]} d6 {[%emt 0:00:30]} 2. d4 {[%emt 0:00:21]} Nf6 {[%emt 0:00:28]} 3. Nc3 {[%emt 0:00:30]} g6 {[%emt 0:00:30]} 4. f4 {[%emt 0:00:30]} Bg7 {[%emt 0:00:30]} 5. Nf3 {[%emt 0:00:30]} c5 {[%emt 0:00:30]} 6. dxc5 {[%emt 0:00:30]} Qa5 7. Bd3 {[%emt 0:09:17]} Qxc5 {[%emt 0:01:06]} 8. Qe2 {[%emt 0:00:52]} Nc6 {[%emt 0:01:49]} 9. Be3 {[%emt 0:01:39]} Qb4 {[%emt 0:00:32]} 10. O-O-O {[%emt 0:02:50]} O-O {[%emt 0:05:31]} 11. a3 {[%emt 0:04:46]} Qa5 {[%emt 0:00:26]} 12. h3 {[%emt 0:02:07]} Nh5 {[%emt 0:03:52]} 13. Qe1 {[%emt 0:06:05]} Rb8 {[%emt 0:07:39]} 14. g4 {[%emt 0:04:21]} Nf6 {[%emt 0:04:54]} 15. Nb5 {[%emt 0:04:40]} Qd8 {[%emt 0:12:16]} 16. Nxa7 {[%emt 0:04:54]} Nxa7 {[%emt 0:01:08]} 17. Bxa7 {[%emt 0:00:19]} Ra8 {[%emt 0:00:07]} 18. Be3 {[%emt 0:01:14]} Nd7 {[%emt 0:03:42]} 19. e5 {[%emt 0:06:21]} dxe5 {[%emt 0:03:15]} 20. fxe5 {[%emt 0:00:26]} Qc7 {[%emt 0:00:17]} 21. Bd4 {[%emt 0:02:26]} Nc5 {[%emt 0:04:28]} 22. Qc3 {[%emt 0:03:06]} b6 {[%emt 0:05:32]} 23. b4 {[%emt 0:03:58]} Bb7 {[%emt 0:00:36]} 24. Rhf1 {[%emt 0:01:48]} Nxd3+ {[%emt 0:04:19]} 25. Rxd3 {[%emt 0:00:25]} Qb8 {[%emt 0:00:14]} 26. Rd2 {[%emt 0:02:48]} Qa7 {[%emt 0:05:28]} 27. Kb2 {[%emt 0:02:55]} Qa6 {[%emt 0:03:10]} 28. Rdf2 {[%emt 0:01:53]} Bd5 {[%emt 0:01:17]} 29. Nd2 {[%emt 0:02:47]} Rfc8 {[%emt 0:03:32]} 30. Qd3 {[%emt 0:02:20]} b5 {[%emt 0:05:49]} 31. h4 {[%emt 0:03:56]} Qa4 {[%emt 0:00:54]} 32. Ra1 {[%emt 0:07:07]} Be6 {[%emt 0:03:27]} 33. Ne4 {[%emt 0:02:25]} Rc4 {[%emt 0:01:32]} 34. Nc5 {[%emt 0:01:05]} Rxb4+ {[%emt 0:02:40]} 35. Kc1 {[%emt 0:01:20]} Rxd4 {[%emt 0:00:27]} 36. Nxa4 {[%emt 0:01:07]} Rxd3 {[%emt 0:00:22]} 37. cxd3 {[%emt 0:00:07]} Rxa4 {[%emt 0:00:31]} 38. Rb1 {[%emt 0:02:51]} Bxe5 {[%emt 0:00:55]} 39. Rxb5 {[%emt 0:00:53]} Bd4 {[%emt 0:01:14]} 40. Rc2 {[%emt 0:01:22]} Rxa3 {[%emt 0:00:26]} 41. Kd2 {[%emt 0:00:09]} Bxg4 {[%emt 0:00:29]} 42. Rb4 {[%emt 0:00:35]} e5 {[%emt 0:00:16]} 43. Rb8+ {[%emt 0:00:24]} Kg7 {[%emt 0:00:03]} 44. Rc7 {[%emt 0:00:37]} Ra2+ {[%emt 0:00:57]} 45. Kc1 {[%emt 0:00:16]} Rh2 {[%emt 0:00:33]} 46. Rbb7 {[%emt 0:00:24]} Be6 {[%emt 0:00:35]} 47. Re7 {[%emt 0:00:16]} Kf6 {[%emt 0:00:25]} 48. Kd1 {[%emt 0:00:33]} Rxh4 {[%emt 0:00:26]} 49. Ke1 {[%emt 0:00:17]} Rh2 50. Kf1 {[%emt 0:00:08]} h5 {[%emt 0:00:40]} 51. Rec7 {[%emt 0:00:35]} h4 {[%emt 0:00:11]} 52. Rc6 {[%emt 0:01:27]} h3 {[%emt 0:00:15]} 53. Rc1 {[%emt 0:01:04]} Rf2+ {[%emt 0:00:23]} 54. Kg1 {[%emt 0:00:32]} h2+ {[%emt 0:00:01]} 55. Kh1 Bd5# {[%emt 0:00:14]} 0-1

[Event "12th National Amateur Chess-ch 2025"]
[Site "Bihar"]
[Date "2025.03.25"]
[Round "1.10"]
[White "Shahan Abu Sayeed"]
[Black "Manas"]
[Result "1-0"]
[Annotator "NA RC"]
[ECO "B45"]
[WhiteElo "1691"]
[BlackElo "1459"]
[PlyCount "133"]
[EventDate "2025.03.25"]
[EventCountry "IND"]
[SourceTitle "playchess.com"]
[Source "ChessBase"]
[SourceQuality "1"]
[TimeControl "5400+30"]

1. e4 {[%emt 0:00:02]} c5 {[%emt 0:00:06]} 2. Nf3 {[%emt 0:00:06]} e6 {[%emt 0:00:21]} 3. d4 {[%emt 0:00:09]} cxd4 {[%emt 0:01:11]} 4. Nxd4 {[%emt 0:00:17]} Nc6 {[%emt 0:02:10]} 5. Nxc6 {[%emt 0:01:24]} bxc6 {[%emt 0:00:09]} 6. Nc3 {[%emt 0:00:43]} Bb4 {[%emt 0:00:17]} 7. Qd4 {[%emt 0:00:24]} Bxc3+ {[%emt 0:00:38]} 8. Qxc3 {[%emt 0:00:03]} Qf6 {[%emt 0:00:29]} 9. Qc5 {[%emt 0:02:52]} Qe7 {[%emt 0:00:50]} 10. Be3 {[%emt 0:00:15]} Nf6 {[%emt 0:02:23]} 11. Qxe7+ {[%emt 0:02:47]} Kxe7 {[%emt 0:00:12]} 12. f3 {[%emt 0:00:30]} Re8 {[%emt 0:01:36]} 13. Bc5+ {[%emt 0:09:13]} d6 {[%emt 0:00:26]} 14. Ba3 {[%emt 0:00:09]} c5 {[%emt 0:00:09]} 15. e5 {[%emt 0:00:00]} Nd5 {[%emt 0:02:44]} 16. Bb5 {[%emt 0:04:08]} Bd7 {[%emt 0:00:31]} 17. Bxd7 {[%emt 0:00:07]} Kxd7 {[%emt 0:00:29]} 18. O-O-O {[%emt 0:00:38]} Rac8 {[%emt 0:07:44]} 19. exd6 {[%emt 0:00:54]} Rc6 {[%emt 0:00:45]} 20. Rhe1 {[%emt 0:00:29]} Rxd6 {[%emt 0:00:23]} 21. Bxc5 {[%emt 0:01:55]} Rc6 {[%emt 0:00:47]} 22. Ba3 {[%emt 0:02:13]} Rec8 {[%emt 0:00:44]} 23. c3 {[%emt 0:00:33]} Kc7 {[%emt 0:01:25]} 24. Re4 {[%emt 0:04:22]} Rb8 {[%emt 0:01:05]} 25. Rd3 {[%emt 0:02:17]} g5 {[%emt 0:01:39]} 26. Red4 {[%emt 0:01:21]} Rbb6 {[%emt 0:05:46]} 27. Kd1 {[%emt 0:05:23]} Ra6 {[%emt 0:01:33]} 28. c4 {[%emt 0:02:12]} Nf6 {[%emt 0:02:38]} 29. Be7 {[%emt 0:01:25]} Ne8 {[%emt 0:00:04]} 30. c5 {[%emt 0:11:48]} Kb7 {[%emt 0:01:33]} 31. a3 {[%emt 0:13:09]} f6 {[%emt 0:02:06]} 32. h4 {[%emt 0:04:46]} gxh4 {[%emt 0:03:27]} 33. Rxh4 {[%emt 0:00:33]} Rc7 {[%emt 0:00:37]} 34. Bd8 {[%emt 0:07:29]} Rg7 {[%emt 0:03:52]} 35. b4 {[%emt 0:03:21]} Rc6 {[%emt 0:01:53]} 36. g4 {[%emt 0:00:50]} e5 {[%emt 0:00:44]} 37. Rh2 {[%emt 0:00:39]} Kc8 {[%emt 0:02:34]} 38. Ba5 {[%emt 0:00:19]} Nc7 {[%emt 0:01:27]} 39. Bxc7 {[%emt 0:00:41]} Rcxc7 {[%emt 0:01:18]} 40. Ke2 {[%emt 0:01:39]} Rcd7 {[%emt 0:00:59]} 41. Rxd7 {[%emt 0:01:56]} Rxd7 {[%emt 0:01:02]} 42. Ke3 {[%emt 0:00:46]} Kc7 {[%emt 0:00:47]} 43. Rh6 {[%emt 0:01:01]} Rf7 {[%emt 0:00:37]} 44. Ke4 {[%emt 0:00:25]} Kd7 {[%emt 0:00:45]} 45. Kf5 {[%emt 0:00:55]} Ke7 {[%emt 0:00:08]} 46. c6 {[%emt 0:00:44]} Kd6 {[%emt 0:00:30]} 47. Rxf6+ {[%emt 0:00:12]} Rxf6+ {[%emt 0:00:32]} 48. Kxf6 {[%emt 0:00:01]} Kxc6 {[%emt 0:00:10]} 49. Kxe5 {[%emt 0:00:04]} Kb5 {[%emt 0:00:30]} 50. f4 {[%emt 0:00:06]} Ka4 {[%emt 0:00:36]} 51. f5 {[%emt 0:00:04]} Kxa3 {[%emt 0:00:00]} 52. f6 {[%emt 0:00:00]} Kxb4 {[%emt 0:00:00]} 53. f7 {[%emt 0:00:00]} a5 {[%emt 0:00:18]} 54. f8=Q+ {[%emt 0:00:05]} Kb3 {[%emt 0:00:18]} 55. Qg8+ {[%emt 0:00:00]} Kb2 {[%emt 0:00:20]} 56. Qxh7 {[%emt 0:00:00]} a4 {[%emt 0:00:51]} 57. g5 {[%emt 0:00:02]} a3 {[%emt 0:00:27]} 58. g6 {[%emt 0:00:04]} a2 {[%emt 0:00:06]} 59. Qh2+ {[%emt 0:00:08]} Kb1 {[%emt 0:00:22]} 60. Qxa2+ {[%emt 0:00:09]} Kxa2 {[%emt 0:00:45]} 61. g7 {[%emt 0:00:06]} Ka3 {[%emt 0:00:17]} 62. g8=Q {[%emt 0:00:54]} Kb4 {[%emt 0:00:59]} 63. Qc8 {[%emt 0:00:18]} Ka3 {[%emt 0:00:14]} 64. Qb7 {[%emt 0:00:09]} Ka4 {[%emt 0:00:16]} 65. Kd4 {[%emt 0:00:11]} Ka3 {[%emt 0:00:11]} 66. Kc3 {[%emt 0:00:04]} Ka2 {[%emt 0:00:26]} 67. Qb2# {[%emt 0:00:07]} 1-0

[Event "12th National Amateur Chess-ch 2025"]
[Site "Bihar"]
[Date "2025.03.25"]
[Round "1.11"]
[White "Jashn Ranjan"]
[Black "Akash Srivastav"]
[Result "0-1"]
[Annotator "NA RC"]
[ECO "B22"]
[WhiteElo "1457"]
[BlackElo "1689"]
[PlyCount "90"]
[EventDate "2025.03.25"]
[EventCountry "IND"]
[SourceTitle "playchess.com"]
[Source "ChessBase"]
[SourceQuality "1"]
[TimeControl "5400+30"]

1. e4 {[%emt 0:00:03]} c5 {[%emt 0:00:36]} 2. Nf3 {[%emt 0:00:24]} Nc6 {[%emt 0:00:09]} 3. c3 {[%emt 0:00:23]} e6 {[%emt 0:01:31]} 4. d4 {[%emt 0:02:07]} d5 {[%emt 0:00:18]} 5. exd5 {[%emt 0:00:58]} Qxd5 {[%emt 0:00:56]} 6. Be3 {[%emt 0:03:01]} cxd4 {[%emt 0:03:50]} 7. Nxd4 {[%emt 0:03:46]} a6 {[%emt 0:06:26]} 8. Qf3 {[%emt 0:01:59]} Nxd4 {[%emt 0:02:57]} 9. Bxd4 {[%emt 0:04:06]} Qxf3 {[%emt 0:00:15]} 10. gxf3 {[%emt 0:00:17]} Bd7 {[%emt 0:00:10]} 11. Nd2 {[%emt 0:00:12]} Ne7 {[%emt 0:00:25]} 12. O-O-O {[%emt 0:01:19]} Nf5 {[%emt 0:00:33]} 13. Bb6 {[%emt 0:01:15]} Bc6 {[%emt 0:00:57]} 14. Rg1 {[%emt 0:00:58]} g6 {[%emt 0:01:35]} 15. Ne4 {[%emt 0:00:41]} Bh6+ {[%emt 0:00:37]} 16. Kc2 {[%emt 0:01:49]} O-O {[%emt 0:00:28]} 17. Be2 {[%emt 0:04:01]} a5 {[%emt 0:02:45]} 18. Ng3 {[%emt 0:00:31]} Nh4 {[%emt 0:01:11]} 19. Rd3 {[%emt 0:01:43]} e5 {[%emt 0:01:57]} 20. Bc5 {[%emt 0:01:43]} Rfe8 {[%emt 0:04:46]} 21. Be3 {[%emt 0:02:30]} Bxe3 {[%emt 0:06:52]} 22. Rxe3 {[%emt 0:03:08]} Kf8 {[%emt 0:04:49]} 23. Bd3 {[%emt 0:04:29]} Nxf3 {[%emt 0:01:07]} 24. Rd1 {[%emt 0:01:41]} Nxh2 {[%emt 0:00:51]} 25. Be4 {[%emt 0:00:08]} Ng4 {[%emt 0:00:35]} 26. Re2 {[%emt 0:05:16]} Rac8 {[%emt 0:03:59]} 27. f3 {[%emt 0:01:28]} Nf6 {[%emt 0:00:32]} 28. Bxc6 {[%emt 0:00:07]} Rxc6 {[%emt 0:00:14]} 29. Ne4 {[%emt 0:01:02]} Nxe4 {[%emt 0:00:23]} 30. Rxe4 {[%emt 0:00:22]} b6 {[%emt 0:01:06]} 31. Rde1 {[%emt 0:01:38]} Rce6 {[%emt 0:00:09]} 32. Kb3 {[%emt 0:00:22]} f5 {[%emt 0:00:25]} 33. R4e2 {[%emt 0:02:42]} Kf7 {[%emt 0:00:14]} 34. Rh1 {[%emt 0:00:22]} h5 {[%emt 0:00:04]} 35. Kc4 {[%emt 0:00:21]} Rc8+ {[%emt 0:00:36]} 36. Kb5 {[%emt 0:01:40]} Rc5+ {[%emt 0:00:05]} 37. Ka4 {[%emt 0:00:23]} Kf6 {[%emt 0:00:24]} 38. b4 {[%emt 0:00:20]} Rxc3 {[%emt 0:00:32]} 39. bxa5 {[%emt 0:00:07]} bxa5 {[%emt 0:00:20]} 40. Kxa5 {[%emt 0:00:11]} Rxf3 {[%emt 0:00:34]} 41. a4 {[%emt 0:03:20]} Rb3 {[%emt 0:00:12]} 42. Rd2 {[%emt 0:01:55]} e4 {[%emt 0:00:49]} 43. Rf2 {[%emt 0:00:44]} Re8 {[%emt 0:00:21]} 44. Rxf5+ {[%emt 0:02:36]} gxf5 {[%emt 0:00:06]} 45. Rb1 {[%emt 0:00:49]} Ra8# {[%emt 0:00:04]} 0-1

[Event "12th National Amateur Chess-ch 2025"]
[Site "Bihar"]
[Date "2025.03.25"]
[Round "1.12"]
[White "Tejas Shandilya"]
[Black "Javin Jayaswal"]
[Result "1-0"]
[Annotator "NA RC"]
[ECO "E17"]
[WhiteElo "1675"]
[BlackElo "1454"]
[PlyCount "125"]
[EventDate "2025.03.25"]
[EventCountry "IND"]
[SourceTitle "playchess.com"]
[Source "ChessBase"]
[SourceQuality "1"]
[TimeControl "5400+30"]

1. d4 {[%emt 0:16:13]} Nf6 {[%emt 0:00:26]} 2. Nf3 {[%emt 0:00:55]} e6 {[%emt 0:01:21]} 3. g3 {[%emt 0:01:31]} d5 {[%emt 0:01:15]} 4. Bg2 {[%emt 0:01:21]} Nbd7 {[%emt 0:03:22]} 5. O-O {[%emt 0:02:07]} Be7 {[%emt 0:02:26]} 6. b3 {[%emt 0:03:19]} O-O {[%emt 0:02:40]} 7. Bb2 {[%emt 0:02:13]} b6 {[%emt 0:02:16]} 8. Nbd2 {[%emt 0:01:20]} Bb7 {[%emt 0:01:04]} 9. c4 {[%emt 0:00:49]} c5 {[%emt 0:02:27]} 10. e3 {[%emt 0:00:22]} Re8 {[%emt 0:02:34]} 11. Ne5 {[%emt 0:03:44]} Nxe5 {[%emt 0:15:16]} 12. dxe5 {[%emt 0:01:09]} Ne4 {[%emt 0:04:58]} 13. Nxe4 {[%emt 0:02:16]} dxe4 {[%emt 0:00:09]} 14. Qc2 {[%emt 0:04:18]} Qc7 {[%emt 0:03:07]} 15. Bxe4 {[%emt 0:01:41]} g6 {[%emt 0:03:35]} 16. Rad1 {[%emt 0:01:07]} Bf8 {[%emt 0:02:27]} 17. Rd2 {[%emt 0:02:02]} Rad8 {[%emt 0:06:41]} 18. Rfd1 {[%emt 0:01:31]} Rxd2 {[%emt 0:04:13]} 19. Rxd2 {[%emt 0:00:15]} Bxe4 {[%emt 0:01:10]} 20. Qxe4 {[%emt 0:00:15]} Rd8 {[%emt 0:02:00]} 21. Qc2 {[%emt 0:03:03]} Bg7 {[%emt 0:01:59]} 22. Rxd8+ {[%emt 0:04:40]} Qxd8 {[%emt 0:00:10]} 23. f4 {[%emt 0:02:48]} f6 {[%emt 0:14:37]} 24. exf6 {[%emt 0:02:48]} Bxf6 {[%emt 0:00:10]} 25. Bxf6 {[%emt 0:00:03]} Qxf6 {[%emt 0:00:09]} 26. Qd2 {[%emt 0:00:25]} Qa1+ {[%emt 0:05:40]} 27. Kg2 {[%emt 0:00:12]} Qb1 {[%emt 0:07:36]} 28. Kf3 {[%emt 0:01:58]} Qh1+ {[%emt 0:02:54]} 29. Kg4 {[%emt 0:00:07]} Qe4 {[%emt 0:02:55]} 30. Qd8+ {[%emt 0:08:27]} Kf7 {[%emt 0:01:11]} 31. Qd7+ {[%emt 0:00:03]} Kg8 {[%emt 0:00:19]} 32. Qd2 {[%emt 0:00:04]} Qf5+ {[%emt 0:00:47]} 33. Kf3 {[%emt 0:00:01]} Qh5+ {[%emt 0:00:26]} 34. Kg2 {[%emt 0:00:42]} Qf5 {[%emt 0:00:33]} 35. Qd8+ {[%emt 0:03:26]} Kf7 {[%emt 0:00:34]} 36. Qd7+ {[%emt 0:00:48]} Kg8 {[%emt 0:00:19]} 37. Qd2 {[%emt 0:00:04]} Qe4+ {[%emt 0:00:50]} 38. Kh3 {[%emt 0:00:03]} Qf5+ {[%emt 0:00:16]} 39. g4 {[%emt 0:00:06]} Qb1 {[%emt 0:00:42]} 40. Kh4 {[%emt 0:00:56]} Qa1 {[%emt 0:04:01]} 41. Kg5 {[%emt 0:00:25]} h6+ {[%emt 0:00:44]} 42. Kxg6 {[%emt 0:01:11]} Qg7+ {[%emt 0:00:33]} 43. Kh5 {[%emt 0:00:03]} Kh7 {[%emt 0:00:14]} 44. Qd3+ {[%emt 0:00:08]} Kh8 {[%emt 0:00:13]} 45. Qg6 {[%emt 0:00:10]} Qe7 {[%emt 0:00:53]} 46. Qxh6+ {[%emt 0:00:07]} Kg8 {[%emt 0:00:23]} 47. Qg5+ {[%emt 0:00:03]} Kf7 {[%emt 0:00:39]} 48. Qxe7+ {[%emt 0:00:05]} Kxe7 {[%emt 0:00:13]} 49. Kg6 {[%emt 0:00:03]} a6 {[%emt 0:00:08]} 50. h4 {[%emt 0:00:13]} b5 {[%emt 0:00:06]} 51. h5 {[%emt 0:00:04]} a5 {[%emt 0:00:23]} 52. h6 {[%emt 0:00:16]} a4 {[%emt 0:00:16]} 53. cxb5 {[%emt 0:00:16]} c4 {[%emt 0:00:15]} 54. bxc4 {[%emt 0:00:04]} e5 {[%emt 0:00:28]} 55. fxe5 a3 {[%emt 0:00:13]} 56. h7 {[%emt 0:00:01]} Ke6 {[%emt 0:00:20]} 57. h8=Q {[%emt 0:00:05]} Kd7 {[%emt 0:00:27]} 58. c5 {[%emt 0:00:09]} Kc7 {[%emt 0:00:11]} 59. e6 {[%emt 0:00:39]} Kb7 {[%emt 0:00:10]} 60. e7 {[%emt 0:00:03]} Kc7 {[%emt 0:00:07]} 61. e8=Q {[%emt 0:00:57]} Kb7 {[%emt 0:00:14]} 62. Qa8+ {[%emt 0:00:11]} Kc7 {[%emt 0:00:10]} 63. Qhc8# {[%emt 0:00:06]} 1-0

[Event "12th National Amateur Chess-ch 2025"]
[Site "Bihar"]
[Date "2025.03.25"]
[Round "1.13"]
[White "Bristy Mukherjee"]
[Black "Bhillva Nilaya Kondari Eswara "]
[Result "1-0"]
[Annotator "NA RC"]
[ECO "D02"]
[WhiteElo "1985"]
[BlackElo "1723"]
[PlyCount "43"]
[EventDate "2025.03.25"]
[EventCountry "IND"]
[SourceTitle "playchess.com"]
[Source "ChessBase"]
[SourceQuality "1"]
[TimeControl "5400+30"]

1. d4 {[%emt 0:00:05]} d5 {[%emt 0:00:19]} 2. Bf4 {[%emt 0:00:16]} Nf6 {[%emt 0:00:30]} 3. e3 {[%emt 0:00:12]} c5 {[%emt 0:00:47]} 4. Nf3 {[%emt 0:00:12]} e6 {[%emt 0:01:19]} 5. c3 {[%emt 0:03:39]} Bd6 {[%emt 0:00:42]} 6. Ne5 {[%emt 0:00:54]} O-O {[%emt 0:03:30]} 7. Bd3 {[%emt 0:01:23]} Nc6 {[%emt 0:03:44]} 8. Nd2 {[%emt 0:02:15]} Qc7 {[%emt 0:03:17]} 9. Ndf3 {[%emt 0:07:40]} g6 {[%emt 0:17:52]} 10. h4 {[%emt 0:04:49]} Nd7 {[%emt 0:02:17]} 11. Bh6 {[%emt 0:08:40]} Re8 {[%emt 0:02:22]} 12. Nxf7 {[%emt 0:31:55]} Kxf7 {[%emt 0:16:04]} 13. Ng5+ {[%emt 0:01:04]} Kg8 {[%emt 0:01:44]} 14. h5 {[%emt 0:07:54]} Ne7 {[%emt 0:22:47]} 15. hxg6 {[%emt 0:03:55]} hxg6 {[%emt 0:01:01]} 16. Qf3 {[%emt 0:07:39]} Bf4 {[%emt 0:07:23]} 17. Nxe6 {[%emt 0:01:46]} Qd6 {[%emt 0:05:08]} 18. Nxf4 {[%emt 0:00:27]} cxd4 {[%emt 0:03:06]} 19. cxd4 {[%emt 0:00:24]} Nb6 {[%emt 0:04:03]} 20. Bg5 {[%emt 0:06:02]} Nf5 {[%emt 0:01:47]} 21. g4 {[%emt 0:00:29]} Nxd4 {[%emt 0:00:39]} 22. Qh3 {[%emt 0:00:16]} 1-0

[Event "12th National Amateur Chess-ch 2025"]
[Site "Bihar"]
[Date "2025.03.25"]
[Round "1.14"]
[White "Smaraki, Mohanty"]
[Black "Nivedita V C"]
[Result "0-1"]
[Annotator "NA RC"]
[ECO "A25"]
[WhiteElo "1721"]
[BlackElo "1950"]
[PlyCount "62"]
[EventDate "2025.03.25"]
[EventCountry "IND"]
[SourceTitle "playchess.com"]
[Source "ChessBase"]
[SourceQuality "1"]
[TimeControl "5400+30"]

1. c4 {[%emt 0:00:04]} e5 {[%emt 0:00:05]} 2. Nc3 {[%emt 0:00:05]} Nc6 {[%emt 0:00:03]} 3. g3 {[%emt 0:00:05]} g6 {[%emt 0:00:04]} 4. Bg2 {[%emt 0:00:04]} Bg7 {[%emt 0:00:04]} 5. e3 {[%emt 0:00:03]} d6 {[%emt 0:00:36]} 6. Nge2 {[%emt 0:00:33]} Be6 {[%emt 0:00:46]} 7. b3 {[%emt 0:00:59]} Nge7 {[%emt 0:04:12]} 8. d4 {[%emt 0:04:25]} exd4 {[%emt 0:06:05]} 9. Nxd4 {[%emt 0:02:42]} Nxd4 {[%emt 0:19:13]} 10. exd4 {[%emt 0:00:10]} O-O {[%emt 0:01:30]} 11. Bb2 {[%emt 0:06:29]} d5 {[%emt 0:00:22]} 12. c5 {[%emt 0:01:05]} b6 {[%emt 0:02:45]} 13. cxb6 {[%emt 0:11:45]} axb6 {[%emt 0:00:09]} 14. O-O {[%emt 0:00:09]} h5 {[%emt 0:13:53]} 15. Ne2 {[%emt 0:04:39]} Bg4 {[%emt 0:09:35]} 16. h3 {[%emt 0:03:50]} Bxe2 {[%emt 0:02:37]} 17. Qxe2 {[%emt 0:00:02]} Nf5 {[%emt 0:00:07]} 18. Qd2 {[%emt 0:04:30]} Re8 {[%emt 0:02:05]} 19. a4 {[%emt 0:01:42]} Qf6 {[%emt 0:03:45]} 20. Rab1 {[%emt 0:19:52]} Rad8 {[%emt 0:01:29]} 21. Rfd1 {[%emt 0:01:40]} Rd6 {[%emt 0:07:31]} 22. b4 {[%emt 0:14:13]} Rde6 {[%emt 0:16:57]} 23. Bxd5 {[%emt 0:06:49]} Re2 {[%emt 0:00:18]} 24. Qd3 {[%emt 0:07:27]} Qd6 {[%emt 0:00:50]} 25. Qb3 {[%emt 0:02:46]} R8e3 {[%emt 0:01:48]} 26. Bxf7+ {[%emt 0:01:04]} Kh8 {[%emt 0:00:07]} 27. Qd5 {[%emt 0:00:19]} Rxg3+ {[%emt 0:00:02]} 28. Kf1 {[%emt 0:00:32]} Rxf2+ {[%emt 0:00:02]} 29. Ke1 {[%emt 0:01:07]} Rg1+ {[%emt 0:00:05]} 30. Kxf2 {[%emt 0:00:11]} Qg3+ {[%emt 0:00:02]} 31. Ke2 {[%emt 0:00:16]} Qe3# {[%emt 0:00:03]} 0-1

[Event "12th National Amateur Chess-ch 2025"]
[Site "Bihar"]
[Date "2025.03.25"]
[Round "1.15"]
[White "Diya Chowdhury"]
[Black "Suravi Bhattacharya"]
[Result "1/2-1/2"]
[Annotator "NA RC"]
[ECO "C11"]
[WhiteElo "1939"]
[BlackElo "1718"]
[PlyCount "88"]
[EventDate "2025.03.25"]
[EventCountry "IND"]
[SourceTitle "playchess.com"]
[Source "ChessBase"]
[SourceQuality "1"]
[TimeControl "5400+30"]

1. e4 {[%emt 0:00:07]} e6 {[%emt 0:00:06]} 2. Nf3 {[%emt 0:00:27]} d5 {[%emt 0:00:08]} 3. Nc3 {[%emt 0:00:15]} Nf6 {[%emt 0:00:32]} 4. e5 {[%emt 0:00:18]} Nfd7 {[%emt 0:00:02]} 5. d4 {[%emt 0:00:15]} c5 {[%emt 0:01:03]} 6. dxc5 {[%emt 0:00:16]} Nc6 {[%emt 0:02:31]} 7. Bf4 {[%emt 0:00:11]} Bxc5 {[%emt 0:00:31]} 8. Bd3 {[%emt 0:00:09]} f6 {[%emt 0:03:18]} 9. exf6 {[%emt 0:01:26]} Nxf6 {[%emt 0:01:01]} 10. O-O {[%emt 0:02:04]} O-O {[%emt 0:03:23]} 11. Bg3 {[%emt 0:00:31]} a6 {[%emt 0:03:40]} 12. Qe2 {[%emt 0:01:47]} Nh5 {[%emt 0:20:39]} 13. Rad1 {[%emt 0:13:13]} Nxg3 {[%emt 0:11:58]} 14. hxg3 {[%emt 0:00:07]} Qf6 {[%emt 0:01:26]} 15. Na4 {[%emt 0:10:52]} Nd4 {[%emt 0:04:38]} 16. Nxd4 {[%emt 0:01:02]} Bxd4 {[%emt 0:00:02]} 17. Bxh7+ {[%emt 0:08:32]} Kh8 {[%emt 0:15:45]} 18. Qh5 {[%emt 0:04:00]} Bxf2+ {[%emt 0:05:13]} 19. Rxf2 {[%emt 0:01:09]} Qxf2+ {[%emt 0:00:02]} 20. Kh2 {[%emt 0:01:11]} Qe3 {[%emt 0:03:49]} 21. Nb6 {[%emt 0:03:13]} Rb8 {[%emt 0:01:54]} 22. Rd3 {[%emt 0:25:39]} Qh6 {[%emt 0:01:47]} 23. Qxh6 {[%emt 0:02:30]} gxh6 {[%emt 0:00:01]} 24. Bg6 {[%emt 0:00:09]} Kg7 {[%emt 0:05:21]} 25. Bh5 {[%emt 0:00:19]} Rd8 {[%emt 0:06:48]} 26. Rf3 {[%emt 0:01:31]} Rf8 {[%emt 0:00:21]} 27. Rc3 {[%emt 0:00:27]} d4 {[%emt 0:01:21]} 28. Rc7+ {[%emt 0:02:03]} Kf6 {[%emt 0:00:18]} 29. Bg4 {[%emt 0:00:44]} Rg8 {[%emt 0:01:47]} 30. Bh3 {[%emt 0:03:25]} Rg7 {[%emt 0:03:09]} 31. Rc4 {[%emt 0:01:24]} Bd7 {[%emt 0:01:11]} 32. Rxd4 {[%emt 0:00:13]} Bc6 {[%emt 0:00:15]} 33. Rd6 {[%emt 0:00:17]} Re8 {[%emt 0:00:26]} 34. a4 {[%emt 0:01:10]} Ke5 {[%emt 0:01:18]} 35. Nc4+ {[%emt 0:00:19]} Kf6 {[%emt 0:00:09]} 36. Nb6 {[%emt 0:00:05]} Ke5 {[%emt 0:00:47]} 37. Nc4+ {[%emt 0:00:50]} Kf6 {[%emt 0:00:09]} 38. Nb6 {[%emt 0:00:28]} Ke5 {[%emt 0:00:24]} 39. Rd2 {[%emt 0:02:04]} Kf6 {[%emt 0:00:45]} 40. Rd6 {[%emt 0:01:38]} Ke5 {[%emt 0:00:21]} 41. Rd2 {[%emt 0:01:44]} Kf6 {[%emt 0:00:28]} 42. Rd6 {[%emt 0:00:44]} Ke5 {[%emt 0:00:23]} 43. Nc4+ {[%emt 0:00:34]} Kf6 {[%emt 0:00:33]} 44. Nb6 {[%emt 0:00:26]} Ke5 {[%emt 0:00:31]} 1/2-1/2